bitfinex/quotes_ETHUSD_20250625
["timestamp","ask_amount","ask_price","bid_price","bid_amount"]
[1750861528319,9.032,2408.2,2407.9,0.2072]
[1750861528517,9.032,2408.2,2407.4,4.98356447]
[1750861528518,9.8266,2408.2,2407.4,4.98356447]
[1750861528743,10.0338,2408.2,2407.8,4.15304208]
[1750861528946,10.0338,2408.2,2407.7,4.15331176]
[1750861528947,13.9792178,2408.2,2407.7,4.15331176]
[1750861529157,0.2072,2408.0,2407.6,4.15343015]
[1750861529353,9.026,2407.9,2407.5,0.2072]
[1750861529654,9.026,2407.9,2407.7,4.15332165]
[1750861529820,9.026,2407.9,2407.6,4.15343666]
[1750861530224,9.026,2407.9,2407.8,4.15316886]
[1750861530654,9.026,2407.9,2407.7,4.15325515]
[1750861531158,9.026,2407.9,2407.5,0.2072]
[1750861531361,9.026,2407.9,2407.4,4.15374642]
[1750861531670,9.026,2407.9,2407.3,4.15400489]
[1750861531671,0.2072,2407.6,2407.3,4.15393864]
[1750861531864,9.019,2407.5,2407.2,4.36136327]
[1750861532074,9.019,2407.5,2404.8,2.0578163]
[1750861532075,10.779,2407.4,2405.7,4.15679428]
[1750861532357,4.15437242,2407.2,2406.6,4.15515316]
[1750861532658,4.15458121,2407.0,2405.7,4.15679428]
[1750861532856,3.229,2406.9,2405.7,4.15679428]
[1750861533027,3.229,2406.9,2405.6,0.8199]
[1750861533028,3.229,2406.9,2406.3,4.15575697]
[1750861533227,4.15498244,2406.8,2406.2,4.1558655]
[1750861533428,9.015,2406.7,2406.3,4.1556946]
[1750861533927,9.015,2406.7,2406.3,4.15568481]
[1750861534226,9.015,2406.7,2406.4,4.15557349]
[1750861534421,9.015,2406.7,2406.4,4.15553262]
[1750861534658,9.015,2406.7,2405.7,10.0]
[1750861534857,0.7768,2406.6,2405.7,1.08199]
[1750861535156,0.7768,2406.6,2405.6,0.8199]
[1750861535157,4.15620425,2406.1,2405.2,0.767]
[1750861535359,16.39535328,2406.0,2405.4,4.15730863]
[1750861535547,0.8162,2405.9,2405.4,4.15716454]
[1750861535855,0.8162,2405.9,2404.9,4.15817705]
[1750861536030,4.97266745,2405.9,2405.4,4.15715775]
[1750861536229,0.8162,2405.9,2405.3,4.15733862]
[1750861536549,0.8162,2405.9,2405.4,4.15718544]
[1750861536855,4.97267374,2405.9,2405.2,4.15752826]
[1750861537059,4.15690093,2405.7,2405.1,4.15774508]
[1750861537256,9.007,2405.6,2405.1,4.15775596]
[1750861537561,9.007,2405.6,2405.1,4.15768208]
[1750861537855,9.007,2405.6,2405.3,4.15739267]
[1750861538061,9.007,2405.6,2405.1,4.15770169]
[1750861538227,9.007,2405.6,2405.3,4.15737449]
[1750861538429,9.007,2405.6,2405.1,4.15774463]
[1750861538657,4.1571507,2405.5,2404.9,4.15806462]
[1750861538862,4.1571507,2405.5,2405.0,4.15795784]
[1750861539036,4.1571507,2405.5,2404.5,4.15886878]
[1750861539230,9.007,2405.6,2405.0,4.15798833]
[1750861539430,9.007,2405.6,2405.2,4.15762245]
[1750861539630,9.007,2405.6,2404.8,4.15829503]
[1750861539837,9.007,2405.6,2405.1,4.1577605]
[1750861540042,9.007,2405.6,2405.2,4.15748663]
[1750861540358,9.007,2405.6,2405.4,4.15718698]
[1750861540873,12.228,2405.5,2404.6,0.49098688]
[1750861541047,12.228,2405.5,2404.7,10.0]
[1750861541244,16.38519863,2405.5,2404.7,1.29176333]
[1750861541445,16.38519863,2405.5,2404.1,10.0]
[1750861541446,0.8158,2405.4,2404.0,0.8315]
[1750861542001,0.2072,2404.8,2404.3,0.2072]
[1750861542167,0.2072,2404.8,2404.1,4.15956075]
[1750861542168,0.8158,2405.4,2405.0,4.15788412]
[1750861542169,12.224,2405.3,2405.0,4.15788412]
[1750861542380,12.224,2405.3,2404.5,4.15882161]
[1750861542667,12.224,2405.3,2404.8,4.36547247]
[1750861543033,16.38162159,2405.3,2404.8,0.2072]
[1750861543288,0.2072,2405.0,2404.5,4.36595788]
[1750861543487,8.993,2404.9,2404.6,4.15869583]
[1750861543838,8.993,2404.9,2404.5,4.15879217]
[1750861544172,10.2072,2404.8,2404.5,4.15885217]
[1750861544370,10.2072,2404.8,2404.7,4.15852289]
[1750861544583,10.2072,2404.8,2404.6,4.15863468]
[1750861544739,10.2072,2404.8,2404.4,0.2072]
[1750861544941,10.2072,2404.8,2404.7,4.15852289]
[1750861545250,10.2072,2404.8,2404.6,4.1585391]
[1750861545450,10.2072,2404.8,2404.4,0.2072]
[1750861545657,10.2072,2404.8,2404.4,4.3661893]
[1750861546394,0.7635,2404.7,2404.1,4.15946473]
[1750861546551,3.3812,2404.6,2404.4,4.15891712]
[1750861546751,3.3812,2404.6,2404.3,4.1590593]
[1750861546752,8.985,2404.5,2404.3,4.1590593]
[1750861547055,8.985,2404.5,2404.3,4.15910494]
[1750861547261,8.985,2404.5,2404.4,4.15904175]
[1750861547582,8.982,2404.6,2404.5,4.15876884]
[1750861547752,8.982,2404.6,2404.4,4.1589495]
[1750861547945,8.982,2404.6,2404.5,4.15886878]
[1750861548142,8.982,2404.6,2403.8,4.15996565]
[1750861548342,8.982,2404.6,2404.0,4.15973377]
[1750861548581,10.0,2404.5,2404.3,4.15913202]
[1750861548777,8.982,2404.6,2403.9,4.15990681]
[1750861548778,8.982,2404.6,2404.4,4.15903095]
[1750861548979,8.982,2404.6,2404.5,4.15886878]
[1750861549175,8.982,2404.6,2403.7,4.16008339]
[1750861549176,8.978,2404.6,2403.6,0.7714]
[1750861549378,8.978,2404.6,2404.3,4.15911114]
[1750861549584,8.978,2404.6,2403.7,0.49319877]
[1750861549585,8.978,2404.6,2404.4,4.15901246]
[1750861549751,8.976,2404.6,2404.5,4.15886878]
[1750861550561,3.175,2404.7,2404.6,4.15869583]
[1750861550782,3.94,2405.5,2404.5,0.8326]
[1750861551078,8.973,2405.4,2405.3,4.15748555]
[1750861551447,8.973,2405.4,2405.1,4.15771261]
[1750861551651,8.973,2405.4,2405.1,4.15774712]
[1750861551884,8.973,2405.4,2405.2,4.15757945]
[1750861552484,9.969,2405.8,2405.7,4.15679428]
[1750861552684,22.115,2405.8,2404.7,4.15846565]
[1750861552985,22.115,2405.8,2404.8,0.41584657]
[1750861553185,22.115,2405.8,2405.3,4.15734303]
[1750861553497,22.115,2405.8,2405.4,4.1572831]
[1750861553671,10.0,2405.7,2404.9,4.1581525]
[1750861553853,10.0,2405.7,2405.3,4.15740112]
[1750861554057,10.0,2405.7,2405.3,4.1573177]
[1750861554254,10.0,2405.7,2405.2,4.15758665]
[1750861554459,14.15681257,2405.7,2405.2,4.15758665]
[1750861554772,10.0,2405.7,2404.8,0.41584657]
[1750861554970,10.0,2405.7,2405.3,4.15738507]
[1750861555301,10.0,2405.7,2405.4,4.15728679]
[1750861555505,22.115,2405.8,2404.9,4.15817705]
[1750861555797,12.135,2405.7,2405.4,4.15720397]
[1750861556187,18.99975103,2405.7,2404.9,4.15817705]
[1750861556382,14.8428758,2405.7,2404.6,4.15853866]
[1750861556589,14.8428758,2405.7,2404.5,0.8326]
[1750861556791,14.8428758,2405.7,2404.6,4.15869583]
[1750861557104,12.135,2405.7,2404.7,4.15852289]
[1750861557310,12.135,2405.7,2405.3,4.15741171]
[1750861557463,0.2072,2405.6,2405.4,4.15720229]
[1750861558806,0.2072,2405.6,2405.4,4.15730246]
[1750861559293,0.2072,2405.6,2405.5,4.15713988]
[1750861559664,0.2072,2405.6,2404.9,4.15815958]
[1750861559665,9.1592,2405.6,2404.9,4.15815958]
[1750861559996,0.2072,2405.4,2405.1,4.15771924]
[1750861560196,8.946,2405.3,2404.7,4.15852289]
[1750861560359,0.68599707,2405.6,2404.8,4.15818265]
[1750861560360,9.1522,2405.2,2404.8,4.15818265]
[1750861560563,8.944,2405.1,2404.9,4.15815349]
[1750861561400,8.944,2405.1,2404.6,4.15856025]
[1750861561401,3.175,2405.0,2404.6,4.15856025]
[1750861561699,3.175,2405.0,2403.7,0.49319877]
[1750861561700,3.175,2405.0,2404.3,4.36639898]
[1750861561701,0.2072,2404.8,2404.3,4.36639898]
[1750861561898,4.46499,2405.0,2404.2,0.2072]
[1750861561899,9.1472,2404.7,2404.2,0.2072]
[1750861562097,9.1472,2404.7,2404.4,4.15889933]
[1750861562395,9.1472,2404.7,2404.3,4.15915072]
[1750861562603,9.1472,2404.7,2404.4,4.15895107]
[1750861562776,9.1472,2404.7,2404.6,4.15869583]
[1750861563166,4.93856284,2405.2,2404.4,4.15895107]
[1750861563167,10.7809,2405.2,2404.8,4.15830107]
[1750861563370,10.7809,2405.2,2403.3,4.16093158]
[1750861563371,0.2072,2405.1,2404.6,0.2072]
[1750861563565,10.0,2405.7,2404.2,4.15936174]
[1750861563566,0.2072,2405.3,2405.1,4.15783127]
[1750861563771,8.934,2405.4,2405.0,4.15797463]
[1750861563970,8.934,2405.4,2405.1,0.2072]
[1750861564299,0.2072,2405.2,2404.9,4.15816967]
[1750861564527,8.933,2405.1,2405.0,4.15800415]
[1750861564704,8.933,2405.1,2404.9,4.15808913]
[1750861565199,8.933,2405.1,2405.0,4.15800415]
[1750861566201,0.2072,2405.2,2405.0,4.15800415]
[1750861566509,8.926,2405.1,2405.0,4.15789417]
[1750861567202,8.926,2405.1,2405.0,4.15800415]
[1750861567572,9.7272,2405.1,2404.8,4.15834996]
[1750861567771,9.7272,2405.1,2405.0,4.15800415]
[1750861567973,9.7272,2405.1,2404.9,4.15810955]
[1750861568278,9.7272,2405.1,2405.0,4.15800415]
[1750861569317,8.926,2405.1,2405.0,4.15800415]
[1750861569820,8.926,2405.1,2404.9,4.15809273]
[1750861569988,8.926,2405.1,2405.0,4.15800415]
[1750861570398,9.1332,2405.1,2405.0,4.15800415]
[1750861570599,8.926,2405.1,2405.0,4.15800415]
[1750861571609,8.926,2405.1,2404.0,4.94801157]
[1750861571911,8.926,2405.1,2405.0,4.15800415]
[1750861572312,8.926,2405.1,2404.9,4.15808588]
[1750861572821,8.926,2405.1,2405.0,4.15800415]
[1750861573630,8.926,2405.1,2404.8,0.2072]
[1750861573833,8.926,2405.1,2404.8,4.36547101]
[1750861574011,8.926,2405.1,2404.0,9.6954]
[1750861574012,8.926,2405.1,2405.0,4.15800415]
[1750861574688,8.926,2405.1,2404.9,4.15808943]
[1750861575026,8.926,2405.1,2405.0,4.15800415]
[1750861575989,0.7511,2405.5,2405.0,5.01033899]
[1750861576233,3.3822,2405.6,2405.5,4.15713988]
[1750861576435,0.2072,2405.6,2405.5,4.15713988]
[1750861576759,8.892,2405.8,2405.4,4.15717026]
[1750861577031,9.0982,2405.7,2405.6,4.15696707]
[1750861577326,8.89,2405.7,2405.6,4.15696707]
[1750861579225,0.2072,2405.9,2405.8,4.15662149]
[1750861579394,8.886,2405.8,2405.6,4.15696707]
[1750861580222,8.886,2405.8,2405.7,4.15670909]
[1750861580419,0.2072,2405.9,2405.8,4.15662149]
[1750861580622,13.084,2406.0,2405.9,4.15644873]
[1750861580623,21.962,2406.0,2405.9,4.15644873]
[1750861581222,21.962,2406.0,2405.8,0.2072]
[1750861581531,21.962,2406.0,2405.4,4.95325549]
[1750861581532,0.2072,2405.8,2405.4,4.36438774]
[1750861581759,0.2072,2405.8,2405.1,0.766]
[1750861581760,0.2072,2405.8,2405.1,4.15766977]
[1750861581762,13.03188819,2405.7,2405.1,4.15766977]
[1750861582036,13.03188819,2405.7,2405.2,4.15757834]
[1750861582037,0.2072,2405.4,2405.2,4.15757834]
[1750861582194,8.873,2405.3,2405.2,4.15757834]
[1750861582394,0.2072,2405.4,2405.3,4.15748555]
[1750861582592,8.871,2405.5,2405.4,4.15731271]
[1750861582806,9.975,2406.0,2405.8,4.15659924]
[1750861583006,9.0772,2405.9,2405.8,4.15659924]
[1750861583634,8.87,2405.9,2405.8,4.15659924]
[1750861584836,18.838,2406.0,2405.9,4.15644873]
[1750861585153,3.108,2406.1,2406.0,4.15627597]
[1750861585321,0.2072,2406.6,2406.5,4.15541242]
[1750861585524,3.108,2406.7,2406.6,4.15523975]
[1750861585711,11.967,2406.7,2406.6,4.15523975]
[1750861586117,11.967,2406.7,2406.5,0.2072]
[1750861586340,0.2072,2406.6,2406.2,4.36303405]
[1750861586544,8.857,2406.5,2406.2,0.2072]
[1750861586839,0.2072,2406.2,2405.8,4.15650441]
[1750861587065,9.0632,2406.1,2405.8,4.15650441]
[1750861587208,8.855,2406.0,2405.8,4.15655256]
[1750861587553,8.855,2406.0,2405.9,4.15644873]
[1750861587726,3.3152,2406.4,2405.9,5.19489108]
[1750861587923,8.852,2406.3,2406.0,4.15626485]
[1750861588125,0.2072,2406.2,2405.7,0.2072]
[1750861588441,0.2072,2406.2,2406.0,4.15612991]
[1750861588636,0.2072,2406.2,2405.9,4.15633985]
[1750861588838,0.2072,2406.2,2406.0,4.15624295]
[1750861589021,0.2072,2406.2,2405.9,4.1563596]
[1750861589412,0.2072,2406.2,2406.0,4.15625131]
[1750861589650,0.2072,2406.2,2406.1,4.15610323]
[1750861589940,9.0592,2406.3,2406.1,4.15610323]
[1750861590244,9.0592,2406.3,2406.2,4.15593051]
[1750861590813,8.852,2406.3,2406.0,4.15611204]
[1750861591014,8.852,2406.3,2406.2,4.15593051]
[1750861591350,8.84,2406.3,2406.2,4.15593051]
[1750861595547,9.973,2406.9,2406.2,0.8065]
[1750861595740,9.973,2406.9,2406.8,4.15489446]
[1750861596053,18.796,2406.9,2406.8,4.15489446]
[1750861596452,3.107,2407.1,2407.0,4.15454923]
[1750861596636,11.926,2407.1,2407.0,4.15454923]
[1750861596819,3.8905,2407.6,2407.0,4.15452442]
[1750861597163,3.107,2407.6,2407.5,4.15368639]
[1750861597456,11.924,2407.6,2407.4,4.15377718]
[1750861597761,11.924,2407.6,2407.5,4.15368639]
[1750861597939,11.924,2407.6,2407.4,4.15380661]
[1750861598139,11.924,2407.6,2406.9,0.8206]
[1750861598386,11.924,2407.6,2407.2,4.15419892]
[1750861598676,16.07752093,2407.6,2407.1,4.15429631]
[1750861598884,4.15342844,2407.7,2407.1,4.15429631]
[1750861599047,8.811,2407.6,2407.3,4.15386151]
[1750861599240,8.811,2407.6,2407.4,4.15381004]
[1750861599441,8.809,2407.5,2407.1,5.06726522]
[1750861599673,8.808,2407.6,2407.5,4.15368639]
[1750861600182,8.806,2407.7,2407.5,4.15368639]
[1750861600352,8.806,2407.7,2407.6,4.15351387]
[1750861600552,8.806,2407.7,2407.3,4.15388011]
[1750861600753,8.806,2407.7,2407.5,0.2072]
[1750861601056,8.806,2407.7,2407.1,4.15437663]
[1750861601260,0.2072,2407.6,2407.1,4.36156145]
[1750861601581,8.801,2407.5,2407.1,0.2072]
[1750861602097,8.801,2407.5,2407.0,4.15441717]
[1750861602383,0.2072,2407.4,2407.0,4.36161717]
[1750861602700,0.2072,2407.0,2406.3,0.2072]
[1750861602862,0.2072,2406.8,2406.3,0.2072]
[1750861603062,0.2072,2406.8,2406.4,4.1555851]
[1750861603246,0.2072,2406.8,2406.2,0.828]
[1750861603247,8.794,2406.7,2406.6,0.2072]
[1750861603451,8.794,2406.7,2406.3,4.36286255]
[1750861603652,8.794,2406.7,2406.4,4.15555037]
[1750861603848,0.2072,2406.8,2406.3,0.2072]
[1750861604183,12.94713622,2406.7,2406.3,0.2072]
[1750861605192,4.15524075,2406.6,2406.3,0.2072]
[1750861605556,8.792,2406.7,2406.0,4.15619569]
[1750861605767,0.2072,2406.5,2406.4,4.15545562]
[1750861605979,8.792,2406.7,2406.5,4.15536517]
[1750861606171,8.792,2406.7,2406.4,4.15550378]
[1750861606356,8.792,2406.7,2406.0,4.65124307]
[1750861606357,8.792,2406.7,2406.5,0.2072]
[1750861606560,8.792,2406.7,2406.2,0.2072]
[1750861606561,13.15429973,2406.7,2406.2,0.2072]
[1750861606785,13.15429973,2406.7,2406.2,4.36312128]
[1750861606994,13.15429973,2406.7,2406.2,4.36310794]
[1750861607503,4.95441163,2406.5,2405.8,4.95019998]
[1750861607803,8.9862,2406.4,2406.1,4.15610323]
[1750861608103,4.15284211,2408.0,2405.8,4.95017361]
[1750861608265,4.15492366,2406.8,2406.3,4.15567899]
[1750861608461,8.776,2406.7,2406.3,4.15565127]
[1750861608662,11.81,2406.7,2405.8,0.7936]
[1750861609076,11.81,2406.7,2406.5,4.15526104]
[1750861609293,3.034,2406.7,2406.6,4.15523975]
[1750861609473,11.806,2406.7,2406.6,4.15523975]
[1750861610163,11.806,2406.7,2406.5,4.15539162]
[1750861610364,10.7989,2407.1,2406.5,4.15539162]
[1750861610571,0.7989,2407.1,2406.7,4.15504481]
[1750861610780,11.802,2407.0,2406.7,4.15504481]
[1750861610974,11.802,2407.0,2406.8,4.15485188]
[1750861611507,4.15374847,2407.5,2406.0,4.15610481]
[1750861611508,4.15362538,2407.6,2406.2,4.15592031]
[1750861611808,10.0,2407.3,2406.9,4.15465468]
[1750861612114,8.764,2407.2,2406.9,4.15465468]
[1750861612311,10.0,2407.4,2407.0,4.15452986]
[1750861612478,0.8158,2407.5,2407.2,4.15416648]
[1750861612688,21.794,2407.4,2407.2,4.15416648]
[1750861613013,3.034,2407.4,2407.3,4.15403148]
[1750861613307,3.034,2407.4,2407.3,4.69023148]
[1750861613520,9.97,2407.8,2407.6,4.15334208]
[1750861613818,8.757,2407.7,2407.6,4.15334208]
[1750861614015,9.97,2407.8,2407.6,4.15351387]
[1750861614179,18.725,2407.8,2407.7,4.15334136]
[1750861614377,3.033,2408.3,2407.4,0.7982]
[1750861614580,8.754,2408.2,2408.0,4.15277983]
[1750861614780,8.754,2408.2,2407.8,4.1531066]
[1750861615019,8.754,2408.2,2408.0,4.15274122]
[1750861615626,3.033,2408.3,2407.7,4.15331211]
[1750861615796,8.748,2408.2,2408.1,4.15248879]
[1750861616689,3.033,2408.3,2408.2,4.15247902]
[1750861616924,11.778,2408.3,2408.2,4.15247902]
[1750861617140,11.778,2408.3,2407.8,4.15314246]
[1750861617141,11.778,2408.3,2407.6,4.15349544]
[1750861617310,4.15281379,2408.1,2407.5,4.15357248]
[1750861617515,11.778,2408.3,2406.8,4.15481592]
[1750861617516,9.5751,2408.0,2407.1,0.7629]
[1750861617686,11.774,2407.9,2407.8,4.15307195]
[1750861617881,11.774,2407.9,2407.7,4.15331265]
[1750861617882,0.8331,2408.4,2407.7,0.7629]
[1750861618081,0.2072,2408.2,2408.1,4.15263839]
[1750861618290,8.9452,2408.2,2408.0,4.15273852]
[1750861618482,8.9452,2408.2,2407.9,4.152932]
[1750861618913,8.9452,2408.2,2407.8,4.36033236]
[1750861619224,0.8331,2408.0,2407.5,4.15355175]
[1750861619430,0.8331,2408.0,2407.6,4.153426]
[1750861619431,8.735,2407.9,2407.6,4.153426]
[1750861619654,8.735,2407.9,2407.6,4.15344504]
[1750861619793,8.735,2407.9,2407.5,0.2072]
[1750861619993,0.2072,2407.8,2407.5,4.15368375]
[1750861620224,0.2072,2407.8,2407.4,0.2072]
[1750861620423,0.2072,2407.8,2407.4,4.36101535]
[1750861620727,0.2072,2407.8,2407.5,4.15368639]
[1750861621434,0.2072,2407.8,2406.4,0.7511]
[1750861621435,0.2072,2407.5,2406.4,0.7511]
[1750861621588,0.7869,2407.0,2406.5,0.2072]
[1750861621790,11.9652,2406.9,2406.5,0.5540866]
[1750861622019,11.9652,2406.9,2406.5,4.70948714]
[1750861622218,11.9652,2406.9,2406.6,4.15522604]
[1750861622422,11.9652,2406.9,2406.5,0.5540866]
[1750861622823,11.9652,2406.9,2406.6,4.15520708]
[1750861623133,4.15490699,2406.8,2406.5,0.2072]
[1750861623289,16.12000626,2406.9,2406.5,0.2072]
[1750861623903,4.1549243,2406.8,2406.2,4.15587373]
[1750861624102,0.7886,2406.7,2406.2,4.15582542]
[1750861624312,11.9562,2406.6,2406.3,4.1557578]
[1750861624589,11.9562,2406.6,2406.2,0.2072]
[1750861624837,15.90425837,2406.6,2406.1,4.15604195]
[1750861625073,0.2072,2406.4,2406.0,4.36346945]
[1750861625257,8.714,2406.3,2406.2,4.15591467]
[1750861625458,8.712,2406.3,2405.7,4.15679428]
[1750861625676,8.712,2406.3,2405.9,4.36362875]
[1750861626037,8.712,2406.3,2405.7,0.49196943]
[1750861626038,12.86782877,2406.3,2405.7,0.49196943]
[1750861626374,13.07502877,2406.3,2405.8,4.36382145]
[1750861626674,13.07502877,2406.3,2406.0,4.15617998]
[1750861626675,8.9192,2406.3,2406.0,4.15617998]
[1750861626841,8.708,2406.2,2406.0,4.15617998]
[1750861627047,0.2072,2406.3,2405.9,4.15632338]
[1750861627248,8.708,2406.1,2405.9,4.15632338]
[1750861627449,8.708,2406.1,2405.8,4.15661362]
[1750861627651,0.2072,2406.0,2405.8,4.15661362]
[1750861628171,0.2072,2406.0,2405.8,4.15660829]
[1750861628553,0.2072,2406.0,2405.7,4.15669953]
[1750861629274,0.2072,2406.0,2405.9,4.15644873]
[1750861629460,0.2072,2406.0,2405.8,4.15654405]
[1750861629784,0.2072,2406.0,2405.6,0.2072]
[1750861629785,9.7065,2406.0,2405.6,0.2072]
[1750861630089,9.7065,2406.0,2405.2,0.7869]
[1750861630090,0.2072,2405.8,2405.4,4.36448268]
[1750861630376,0.7844,2406.6,2405.4,0.51513827]
[1750861630540,11.729,2406.5,2406.1,4.15601658]
[1750861630737,11.729,2406.5,2406.1,4.15610323]
[1750861630942,8.694,2406.4,2406.2,4.15578718]
[1750861631148,8.694,2406.4,2406.3,4.1557578]
[1750861631367,0.7844,2406.6,2405.9,0.8198]
[1750861631571,11.726,2406.5,2406.3,4.15565197]
[1750861631878,3.034,2406.6,2406.4,4.15549313]
[1750861632050,8.691,2406.5,2406.4,4.15549313]
[1750861632241,8.691,2406.5,2406.1,4.15601764]
[1750861632752,8.691,2406.5,2406.2,4.15589355]
[1750861633247,0.7986,2406.9,2406.3,4.15570996]
[1750861633448,11.719,2406.8,2406.5,4.15531542]
[1750861633751,0.7986,2406.9,2406.6,4.15522782]
[1750861633954,3.034,2406.9,2406.7,4.15491821]
[1750861634149,8.683,2406.8,2406.7,4.15491821]
[1750861634355,8.683,2406.8,2406.5,4.15530195]
[1750861634555,8.683,2406.8,2406.2,4.15593051]
[1750861634871,8.683,2406.8,2406.6,4.15520961]
[1750861635077,8.683,2406.8,2406.7,4.1550671]
[1750861635641,3.034,2406.9,2406.8,4.15489446]
[1750861638193,8.668,2407.2,2407.1,4.15437663]
[1750861638555,0.7778,2408.1,2407.1,0.83088943]
[1750861638790,4.15282392,2408.0,2407.4,4.91172292]
[1750861638951,8.666,2407.9,2407.4,4.91172292]
[1750861639144,8.666,2407.9,2407.5,4.15364361]
[1750861639370,2.956,2408.0,2407.5,4.15364361]
[1750861639568,2.956,2408.0,2407.9,4.15299638]
[1750861641963,2.956,2408.0,2407.9,4.36019638]
[1750861643369,10.1752,2408.3,2407.9,4.36019638]
[1750861643370,9.968,2408.3,2408.2,4.15247902]
[1750861643571,1.0137,2408.5,2407.9,0.2072]
[1750861643572,0.2072,2408.5,2408.4,4.15213419]
[1750861643947,11.601,2408.6,2408.2,4.15241222]
[1750861644185,12.9683,2408.6,2408.2,4.15241222]
[1750861644375,12.9683,2408.6,2408.2,4.15233041]
[1750861644556,11.8082,2408.6,2408.3,4.15221444]
[1750861644751,11.8082,2408.6,2408.2,4.15247902]
[1750861645072,11.601,2408.6,2408.4,4.15210476]
[1750861645585,11.601,2408.6,2408.5,4.1519618]
[1750861645785,4.15213419,2408.4,2407.3,4.15403148]
[1750861645981,4.15213419,2408.4,2407.1,0.8212]
[1750861645982,10.12753342,2408.3,2407.1,0.8212]
[1750861646188,14.27989161,2408.3,2407.5,4.15364714]
[1750861646350,4.15255559,2408.2,2407.7,4.15321696]
[1750861646547,10.12753342,2408.3,2407.1,0.8212]
[1750861646548,10.12753342,2408.3,2407.4,4.15385199]
[1750861646786,8.633,2408.2,2407.5,4.15356387]
[1750861646992,8.633,2408.2,2407.3,4.15403148]
[1750861646993,8.633,2408.2,2407.6,4.15350091]
[1750861647153,8.633,2408.2,2408.0,4.15269346]
[1750861647361,8.633,2408.2,2407.4,4.15371584]
[1750861647560,8.633,2408.2,2407.9,4.15291021]
[1750861647792,12.78551738,2408.2,2407.7,4.15320663]
[1750861648091,10.6222706,2408.2,2407.8,4.15315877]
[1750861648590,0.7838,2408.0,2407.1,0.8212]
[1750861648800,8.627,2407.9,2406.8,0.7987]
[1750861649007,12.7800301,2407.9,2407.4,4.15377914]
[1750861649157,4.15318605,2407.8,2407.3,4.15397123]
[1750861649363,10.0,2407.5,2406.2,0.7563]
[1750861649604,0.7813,2407.3,2406.3,0.34691543]
[1750861649775,16.48262345,2407.2,2406.3,0.34691543]
[1750861649968,4.15542345,2406.5,2406.3,0.34691543]
[1750861650163,9.3821,2406.5,2406.3,0.34691543]
[1750861650574,8.621,2406.5,2406.4,4.1555851]
[1750861650778,2.955,2406.6,2406.3,0.34691543]
[1750861650976,0.7611,2406.9,2406.6,4.15522933]
[1750861651295,0.7611,2406.9,2406.4,4.1555697]
[1750861651500,0.7611,2406.9,2406.5,4.15541242]
[1750861651903,0.7611,2406.9,2406.6,0.34687218]
[1750861652068,10.0,2407.2,2406.6,0.34687218]
[1750861652268,8.615,2407.1,2406.6,0.34687218]
[1750861652464,0.7507,2407.0,2406.6,0.34687218]
[1750861652669,4.15472184,2406.9,2406.6,0.34687218]
[1750861652879,4.1550671,2406.7,2406.6,0.34687218]
[1750861653085,14.1550671,2406.7,2406.6,0.34687218]
[1750861653269,17.22557381,2406.7,2406.6,0.34687218]
[1750861655877,4.15542966,2406.5,2405.9,0.2072]
[1750861656213,0.2072,2406.2,2405.3,4.94155418]
[1750861656505,0.2072,2406.2,2405.0,4.15797185]
[1750861656506,4.15679428,2405.7,2405.4,0.34704523]
[1750861656711,10.0,2406.0,2405.4,0.34704523]
[1750861656712,11.7642,2405.6,2405.4,0.34704523]
[1750861656908,8.6,2405.5,2405.4,0.34704523]
[1750861657097,8.6,2405.5,2405.4,4.50435794]
[1750861657299,2.956,2405.6,2405.5,4.15713988]
[1750861659106,2.956,2405.6,2405.4,0.34704523]
[1750861659696,2.956,2405.6,2405.4,4.50435115]
[1750861660006,2.956,2405.6,2405.4,4.15729658]
[1750861660515,2.956,2405.6,2405.5,4.15713988]
[1750861660718,8.8072,2405.7,2405.5,4.15713988]
[1750861660719,2.956,2406.0,2405.5,0.2072]
[1750861660889,2.956,2406.0,2405.3,4.15734057]
[1750861660890,8.589,2405.9,2405.6,0.2072]
[1750861661083,12.7454925,2405.9,2405.4,4.15722031]
[1750861661283,0.2072,2405.7,2405.6,4.15696342]
[1750861661610,8.589,2405.9,2405.8,4.15662149]
[1750861661815,8.7962,2405.9,2405.8,4.15662149]
[1750861662112,2.956,2406.0,2405.9,4.15644873]
[1750861662346,11.541,2406.0,2405.9,4.15644873]
[1750861663988,11.541,2406.0,2405.8,4.36373399]
[1750861664194,11.541,2406.0,2405.9,4.15644873]
[1750861664389,11.541,2406.0,2405.3,0.7594]
[1750861664594,1.7769131,2405.9,2405.5,4.15713168]
[1750861664826,8.577,2405.8,2405.5,4.15713988]
[1750861665198,8.577,2405.8,2405.3,4.15745787]
[1750861665398,0.2072,2405.7,2405.4,4.15731049]
[1750861665600,8.574,2405.6,2405.5,4.15713988]
[1750861666589,8.574,2405.6,2405.5,4.36433988]
[1750861667738,8.574,2405.6,2405.3,4.15738943]
[1750861668037,8.574,2405.6,2405.3,4.15748555]
[1750861668334,8.574,2405.6,2405.3,4.15740192]
[1750861668490,8.574,2405.6,2405.2,0.2072]
[1750861668692,8.574,2405.6,2405.2,4.36475791]
[1750861668902,8.574,2405.6,2405.4,4.15721192]
[1750861669106,8.574,2405.6,2405.5,4.15713988]
[1750861669895,8.574,2405.6,2405.4,4.15724403]
[1750861670098,8.574,2405.6,2405.2,0.2072]
[1750861670305,8.574,2405.6,2405.0,0.771]
[1750861670306,0.2072,2405.5,2405.3,4.15739359]
[1750861670737,0.2072,2405.5,2405.1,0.2072]
[1750861670892,0.2072,2405.5,2405.1,4.36496793]
[1750861671097,0.2072,2405.5,2405.2,4.1576584]
[1750861671398,0.2072,2405.5,2405.3,4.15740559]
[1750861671598,0.2072,2405.5,2405.2,4.15756917]
[1750861671832,0.2072,2405.5,2405.1,0.2072]